bitfinex/quotes_ETHUSD_20260110
["timestamp","ask_amount","ask_price","bid_price","bid_amount"]
[1768049512968,4.37786322,3098.0,3097.3,0.90649631]
[1768049513122,4.37786322,3098.0,3097.2,1.16049631]
[1768049513641,3.22799315,3097.9,3097.2,1.16049631]
[1768049514340,6.4559863,3097.9,3097.2,1.16049631]
[1768049515051,6.4559863,3097.9,3097.2,0.90649631]
[1768049515227,7.63627095,3097.9,3097.2,0.90649631]
[1768049516268,0.93737302,3097.8,3097.6,0.002]
[1768049516469,2.13878644,3097.8,3097.0,1.16049631]
[1768049516631,2.13878644,3097.8,3097.3,0.002]
[1768049516826,1.20141342,3097.8,3097.3,0.002]
[1768049517636,3.22820156,3097.7,3097.3,0.002]
[1768049528378,3.22820156,3097.7,3097.6,0.002]
[1768049528680,3.99397376,3097.7,3097.3,0.002]
[1768049530158,7.22217532,3097.7,3097.3,0.002]
[1768049530474,3.99397376,3097.7,3097.3,0.002]
[1768049534692,7.22217532,3097.7,3097.3,0.002]
[1768049534989,0.72221753,3097.6,3097.3,0.002]
[1768049536090,3.22841,3097.5,3097.3,0.002]
[1768049539391,3.95056128,3097.6,3097.3,0.002]
[1768049539591,3.22834375,3097.6,3097.3,0.002]
[1768049541190,3.22824441,3097.7,3097.3,0.002]
[1768049542599,0.94239851,3098.0,3097.3,0.002]
[1768049544904,6.45556954,3098.1,3097.3,0.91272761]
[1768049544905,3.22799315,3097.9,3097.3,0.91272761]
[1768049551515,3.22799315,3097.9,3097.6,0.002]
[1768049552511,3.22799315,3097.9,3097.6,0.91272761]
[1768049553181,3.96169719,3098.0,3097.6,0.91272761]
[1768049563518,0.002,3097.7,3097.6,0.91272761]
[1768049563813,0.002,3098.0,3097.6,0.91272761]
[1768049569318,0.002,3098.0,3097.7,0.96297043]
[1768049569505,0.002,3098.0,3097.6,6.7125986]
[1768049569506,3.48084737,3099.0,3098.0,0.96297043]
[1768049569891,0.94206322,3098.9,3097.8,0.7675569]
[1768049570094,0.94206322,3098.8,3097.6,1.21897043]
[1768049570294,0.94206322,3098.8,3097.7,0.96297043]
[1768049571317,0.90789327,3098.6,3097.7,0.96297043]
[1768049573395,3.227088,3098.8,3097.7,0.96297043]
[1768049573396,7.36262943,3098.5,3097.7,0.96297043]
[1768049573597,8.09889237,3098.5,3097.7,0.96297043]
[1768049575620,8.09889237,3098.5,3098.0,0.001]
[1768049576029,0.002,3098.3,3098.0,0.001]
[1768049580532,0.002,3098.3,3098.0,0.98876393]
[1768049583416,0.002,3098.3,3097.6,0.002]
[1768049583622,0.90537043,3098.3,3097.6,0.002]
[1768049584129,0.90337043,3098.2,3097.3,0.97865656]
[1768049584439,0.90337043,3098.0,3097.3,0.97865656]
[1768049584608,0.735894,3097.9,3097.3,0.97865656]
[1768049586042,3.22778477,3098.1,3097.3,0.97865656]
[1768049586241,3.22770866,3098.2,3097.3,0.97865656]
[1768049587311,3.48358249,3098.3,3097.5,0.97665656]
[1768049589136,6.71116498,3098.3,3097.5,0.97665656]
[1768049589325,7.47261852,3098.3,3097.6,0.97865656]
[1768049593311,0.90337043,3098.2,3097.6,0.002]
[1768049593915,3.22778477,3098.1,3097.6,0.002]
[1768049594431,4.13109359,3098.2,3097.6,0.002]
[1768049596549,3.22772316,3098.2,3097.6,0.002]
[1768049600857,0.001,3097.9,3097.6,0.002]
[1768049603229,0.001,3097.9,3097.6,0.97865656]
[1768049608560,0.002,3098.3,3097.9,0.97665656]
[1768049612349,0.002,3098.0,3097.9,0.97665656]
[1768049612564,0.25200592,3098.7,3098.3,0.97665656]
[1768049613336,0.90337043,3099.0,3098.3,0.97665656]
[1768049613337,3.22685895,3099.0,3098.3,0.97665656]
[1768049613571,3.48176323,3099.1,3098.3,0.97665656]
[1768049614076,3.481764,3099.1,3098.3,0.97665656]
[1768049619094,0.255,3099.1,3098.3,0.97665656]
[1768049624658,3.48175326,3099.1,3098.3,0.97665656]
[1768049624860,3.48175326,3099.1,3098.6,0.001]
[1768049625099,0.002,3098.8,3098.6,0.001]
[1768049625691,0.002,3098.8,3098.6,0.90673214]
[1768049626078,0.002,3098.8,3098.6,0.001]
[1768049635648,0.002,3098.8,3098.6,0.97972836]
[1768049637790,0.002,3098.8,3098.7,0.97872836]
[1768049648779,0.002,3098.8,3098.6,0.001]
[1768049648984,0.002,3098.8,3098.6,0.95562001]
[1768049650305,0.002,3098.8,3098.7,0.03227159]
[1768049650896,0.002,3098.8,3098.6,0.95562001]
[1768049651901,0.002,3098.8,3098.7,0.03227159]
[1768049652373,0.002,3098.8,3098.6,0.95562001]
[1768049654301,0.002,3098.8,3098.7,0.95462001]
[1768049655004,0.002,3098.8,3098.6,0.001]
[1768049656820,0.002,3098.8,3098.6,0.95562001]
[1768049658617,0.002,3098.8,3098.6,0.001]
[1768049658806,0.96813489,3098.8,3098.6,0.001]
[1768049665221,0.002,3098.8,3098.6,0.001]
[1768049690690,0.002,3098.8,3098.6,0.99216003]
[1768049694587,0.002,3098.8,3098.6,0.001]
[1768049709842,17.002,3098.8,3098.6,0.001]
[1768049714343,17.002,3098.8,3098.6,0.90726439]
[1768049722648,17.002,3098.8,3098.6,0.001]
[1768049725147,0.002,3098.8,3098.4,0.254]
[1768049725650,0.002,3098.8,3098.4,0.28627472]
[1768049727053,0.002,3098.8,3098.4,4.38772376]
[1768049728828,0.002,3098.8,3098.5,0.90626439]
[1768049729153,0.002,3098.8,3098.6,0.47104501]
[1768049730659,0.002,3098.8,3098.7,0.001]
[1768049741066,0.002,3099.1,3098.7,0.001]
[1768049741266,0.002,3099.1,3098.8,0.03227055]
[1768049742067,0.002,3099.1,3098.7,0.001]
[1768049742882,0.002,3099.1,3098.7,0.03327159]
[1768049743030,3.95e-06,3099.1,3098.7,0.03327159]
[1768049744374,3.95e-06,3099.1,3098.7,0.77493496]
[1768049744973,3.95e-06,3099.1,3098.7,1.70372038]
[1768049746074,3.95e-06,3099.1,3098.7,0.77493496]
[1768049746243,3.95e-06,3099.1,3098.7,0.74266337]
[1768049746442,3.95e-06,3099.1,3098.7,0.001]
[1768049754677,3.95e-06,3099.1,3099.0,0.001]
[1768049773115,0.95916929,3099.1,3098.7,0.001]
[1768049774547,0.95916534,3099.0,3098.0,3.86]
[1768049774808,0.95916534,3098.8,3097.9,3.48192473]
[1768049775007,0.95916534,3098.8,3097.9,0.254]
[1768049778294,0.95916534,3098.8,3098.2,0.001]
[1768049778494,3.64556157,3098.9,3098.2,0.001]
[1768049778495,1.41963803,3098.7,3098.2,0.001]
[1768049785432,0.95916534,3098.6,3098.2,0.001]
[1768049790440,0.95916534,3098.6,3098.5,0.001]
[1768049793580,0.95916534,3098.6,3098.2,0.001]
[1768049801757,0.95916534,3098.6,3098.5,0.001]
[1768049801959,1.40320155,3098.6,3098.5,0.001]
[1768049802966,0.99219501,3098.5,3098.2,0.001]
[1768049807852,0.44403621,3098.6,3098.2,0.001]
[1768049808335,0.99219896,3099.1,3098.2,0.97198842]
[1768049808670,4.47301131,3099.1,3098.2,0.97198842]
[1768049808873,0.99219501,3099.0,3098.2,0.97198842]
[1768049809253,4.21905222,3099.0,3098.2,0.97198842]
[1768049811189,0.25400395,3099.1,3098.3,0.91305867]
[1768049811481,0.70157293,3099.1,3098.3,0.91305867]
[1768049813180,0.70157293,3099.1,3098.5,0.001]
[1768049813473,0.002,3098.8,3098.5,0.001]
[1768049817950,0.002,3098.8,3098.5,0.96172236]
[1768049821398,0.002,3098.8,3098.6,0.96072236]
[1768049821595,0.002,3098.8,3098.7,0.96072236]
[1768049823097,0.002,3098.8,3098.7,0.99299395]
[1768049823697,0.002,3098.8,3098.7,0.96072236]
[1768049823861,0.002,3098.8,3098.7,0.99299395]
[1768049827700,0.002,3098.8,3098.7,0.96072236]
[1768049830996,0.002,3098.8,3098.6,0.42213568]
[1768049836179,0.002,3098.8,3098.6,3.64936183]
[1768049836376,0.002,3098.8,3098.6,4.555427]
[1768049836576,0.002,3098.8,3098.7,0.03227159]
[1768049836974,3.95e-06,3099.1,3098.7,1.39720662]
[1768049837179,0.96218514,3099.5,3098.7,1.39720662]
[1768049837413,0.95900276,3099.5,3098.7,1.36493503]
[1768049844912,0.95900276,3099.5,3098.8,0.03227055]
[1768049845286,0.95900276,3099.5,3098.7,4.59208533]
[1768049845509,0.95900276,3099.5,3098.8,0.4878358]
[1768049847425,0.95900276,3099.5,3099.0,0.001]
[1768049870387,0.95900276,3099.5,3099.3,0.001]
[1768049882059,0.95900276,3099.5,3099.0,0.001]
[1768049893087,0.95900276,3099.5,3099.3,0.001]
[1768049893292,1.40332712,3099.5,3099.0,0.001]
[1768049896596,0.97439328,3099.4,3099.0,0.001]
[1768049905012,0.97439328,3099.4,3099.3,0.001]
[1768049905212,0.97439328,3099.4,3099.0,0.001]
[1768049914212,0.9221663,3099.3,3099.0,0.001]
[1768049914388,1.38145971,3099.3,3099.0,0.001]
[1768049915314,0.9221663,3099.2,3098.5,0.97703304]
[1768049917833,0.9221663,3099.2,3098.5,0.001]
[1768049924818,0.9221663,3099.2,3098.5,0.97703304]
[1768049928644,0.9221663,3099.2,3098.8,0.001]
[1768049941064,0.44432436,3099.5,3098.8,0.001]
[1768049941065,3.67068723,3099.5,3098.8,0.001]
[1768049941354,1.2863471,3099.4,3098.8,0.001]
[1768049941557,0.91907838,3099.3,3098.8,0.001]
[1768049943154,0.36726872,3099.4,3098.8,0.001]
[1768049945635,1.28395759,3099.4,3098.8,0.001]
[1768049951490,0.002,3099.1,3098.8,0.001]
[1768049952493,0.002,3099.1,3098.8,0.99182696]
[1768049956101,0.002,3099.1,3098.8,0.001]
[1768049964601,0.002,3099.1,3098.8,0.99182696]
[1768049964907,0.002,3099.1,3098.9,0.99082696]
[1768049965902,0.002,3099.1,3099.0,0.03226847]
[1768049966091,0.002,3099.1,3098.9,0.99082696]
[1768049973842,0.002,3099.4,3098.9,0.99082696]
[1768049975516,0.002,3099.1,3098.9,0.99082696]
[1768049975813,0.002,3099.4,3099.1,0.94761041]
[1768049975814,3.95e-06,3099.4,3099.1,0.94761041]
[1768049976915,3.95e-06,3099.4,3099.1,1.07672159]
[1768049979226,3.95e-06,3099.4,3099.1,4.30345185]
[1768049979392,3.95e-06,3099.4,3099.2,0.47675303]
[1768049980917,3.95e-06,3099.4,3099.1,0.38311118]
[1768049983920,3.95e-06,3099.4,3099.1,0.12911118]
[1768050001758,3.95e-06,3099.4,3099.1,3.35584761]
[1768050002264,3.95e-06,3099.4,3099.1,0.12911118]
[1768050005155,3.95e-06,3099.4,3099.1,3.3558323]
[1768050005362,3.95e-06,3099.4,3099.1,4.13194062]
[1768050005757,3.95e-06,3099.4,3099.1,4.00282944]
[1768050006823,3.95e-06,3099.4,3099.1,0.77610832]
[1768050007224,3.95e-06,3099.4,3099.1,4.00283928]
[1768050008127,3.95e-06,3099.4,3099.1,0.77610832]
[1768050020580,3.95e-06,3099.4,3099.0,0.254]
[1768050027194,3.95e-06,3099.4,3099.0,1.17317846]
[1768050027903,3.95e-06,3099.4,3099.0,1.30229381]
[1768050031001,3.95e-06,3099.4,3099.0,0.38311535]
[1768050034382,3.95e-06,3099.4,3099.3,0.001]
[1768050047306,0.9398072,3099.4,3099.0,0.12911535]
[1768050047495,0.9398072,3099.4,3098.8,0.001]
[1768050048283,0.93980325,3099.2,3098.8,0.001]
[1768050057139,0.93980325,3099.2,3099.1,0.001]
[1768050065035,0.93980325,3099.2,3099.1,0.001]
[1768050076842,0.18816105,3099.3,3099.1,0.001]
[1768050087721,0.25500395,3099.4,3099.1,0.001]
[1768050103801,0.97901895,3099.3,3099.1,0.001]
[1768050115269,4.18462895,3099.4,3099.1,0.001]
[1768050115602,5.17242693,3099.4,3099.1,0.001]
[1768050122611,1.9459937,3099.4,3099.1,0.001]
[1768050122811,0.51723595,3099.3,3099.1,0.001]
[1768050123722,0.51723595,3099.3,3098.8,0.001]
[1768050126640,0.51723595,3099.3,3099.1,0.001]
[1768050135432,0.51723595,3099.3,3098.8,0.001]
[1768050135633,4.21423587,3099.4,3098.8,0.001]
[1768050136716,0.9783446,3099.3,3098.8,0.001]
[1768050138343,0.97673128,3099.3,3098.8,0.001]
[1768050143641,3.95e-06,3099.4,3098.8,0.001]
[1768050144032,3.95e-06,3099.4,3098.8,0.95106621]
[1768050144226,3.95e-06,3099.4,3098.9,0.95006621]
[1768050149434,3.95e-06,3099.4,3099.1,0.001]
[1768050172075,3.95e-06,3099.4,3098.8,0.001]
[1768050175054,0.97494378,3099.4,3098.8,0.001]
[1768050176990,4.20141193,3099.4,3098.8,0.001]
[1768050177192,0.51700241,3099.3,3098.8,0.001]
[1768050182290,0.97493983,3099.2,3098.8,0.001]
[1768050182463,0.97493983,3099.2,3098.2,0.001]
[1768050182464,0.97493983,3099.1,3098.2,0.001]
[1768050182995,0.97493983,3098.9,3098.2,0.001]
[1768050183289,0.92336154,3098.7,3098.2,0.001]
[1768050183788,0.92336154,3098.6,3098.2,0.001]
[1768050185164,0.92336154,3098.5,3098.2,0.001]
[1768050187862,4.15083378,3098.4,3098.2,0.001]
[1768050188664,0.92336154,3098.4,3098.2,0.001]
[1768050188996,1.33843709,3098.4,3098.2,0.001]
[1768050190093,4.56592187,3098.4,3097.6,0.96245768]
[1768050191077,0.92336154,3098.4,3097.6,0.96245768]
[1768050195802,0.92336154,3098.4,3097.9,0.001]
[1768050208000,0.92336154,3098.4,3098.2,0.001]
[1768050210686,4.15083917,3098.4,3097.9,0.001]
[1768050213211,0.92336154,3098.3,3097.9,0.001]
[1768050215620,4.15096259,3098.3,3097.9,0.001]
[1768050219423,4.15096259,3098.3,3098.2,0.001]
[1768050219594,4.15096259,3098.3,3097.9,0.001]
[1768050222632,3.22760105,3098.3,3097.9,0.001]
[1768050222823,3.64714393,3098.4,3097.9,0.001]
[1768050223130,0.5592081,3098.3,3097.9,0.001]
[1768050223293,3.78679564,3098.3,3097.9,0.001]
[1768050231031,3.78679564,3098.3,3098.2,0.001]
[1768050231232,3.78679564,3098.3,3097.9,0.001]
[1768050234242,4.76501948,3098.3,3097.9,0.001]
[1768050234443,1.81943607,3098.2,3097.9,0.001]
[1768050235936,5.04716509,3098.2,3097.9,0.001]
[1768050237434,5.04716509,3098.2,3097.6,0.002]
[1768050238836,0.97822384,3098.1,3097.6,0.002]
[1768050240341,4.20604889,3098.1,3097.6,0.002]
[1768050240543,0.50472611,3098.0,3097.6,0.002]
[1768050242850,0.50472611,3098.0,3097.9,0.001]
[1768050243539,3.7326158,3098.0,3097.6,0.002]
[1768050243742,0.50472611,3098.0,3097.6,0.002]
[1768050245246,0.50472611,3098.0,3097.6,0.98232439]
[1768050245451,0.84121223,3098.2,3097.6,0.98232439]
[1768050246652,4.06890431,3098.2,3097.6,0.98232439]
[1768050254271,4.06890431,3098.2,3097.9,0.001]
[1768050254866,4.07090431,3098.2,3097.9,0.001]
[1768050265258,4.07090431,3098.2,3097.6,0.98232439]
[1768050265547,0.78576905,3098.1,3097.6,0.98232439]
[1768050266646,0.002,3097.9,3097.6,0.98232439]
[1768050281397,0.002,3097.9,3097.6,0.002]
[1768050363098,0.00029728,3097.9,3097.6,0.002]
[1768050380297,0.00029728,3097.9,3097.6,0.93745092]
[1768050380702,0.00029728,3097.9,3097.6,0.002]
[1768050385828,0.00029728,3097.9,3097.6,0.93745092]
[1768050387925,0.00029728,3097.9,3097.7,0.93545092]
[1768050392021,0.00029728,3097.9,3097.6,0.002]
[1768050463015,0.00029728,3097.9,3097.6,0.97087802]
[1768050480780,0.90108404,3097.9,3097.6,0.97087802]
[1768050480985,0.89908404,3097.9,3097.6,0.002]
[1768050481787,0.002,3098.2,3097.6,0.002]
[1768050481961,0.90278676,3098.2,3097.6,0.002]
[1768050482162,0.90278676,3098.2,3097.6,0.50802923]
[1768050482163,0.89958676,3098.2,3097.6,0.50802923]
[1768050483057,0.89958676,3098.2,3097.6,1.47690725]
[1768050488595,0.89958676,3098.2,3097.9,0.001]
[1768050489184,0.90158676,3098.2,3097.9,0.001]
[1768050492798,0.89958676,3098.2,3097.9,0.001]
[1768050503004,0.002,3098.2,3097.9,0.001]
[1768050503512,0.002,3098.2,3097.9,0.03327993]
[1768050503718,0.002,3098.2,3098.0,0.19097292]
[1768050506582,0.002,3098.2,3098.0,1.15974769]
[1768050508615,0.002,3098.2,3098.0,4.38761667]
[1768050511234,0.91038992,3098.6,3098.1,0.03227784]
[1768050512645,0.90838992,3098.6,3098.1,0.03227784]
[1768050512808,0.90838992,3098.6,3098.1,0.56512973]
[1768050512994,0.90638992,3098.6,3098.1,0.56512973]
[1768050513336,0.90638992,3098.6,3098.2,0.001]
[1768050518423,1.16438992,3098.7,3098.2,0.001]
[1768050518927,0.254,3098.7,3098.2,0.001]
[1768050519225,0.254,3098.7,3098.2,0.38781074]
[1768050519724,0.96202265,3098.8,3098.2,0.38781074]
[1768050523830,1.21602265,3099.0,3098.2,4.19994963]
[1768050524033,1.21602265,3099.0,3098.2,5.16866809]
[1768050524331,2.18474111,3099.0,3098.2,5.16866809]
[1768050525422,1.21602265,3099.0,3098.3,0.93901532]
[1768050525638,1.21602265,3099.0,3098.5,0.001]
[1768050527037,0.96202265,3098.9,3098.5,0.001]
[1768050551251,1.91192598,3099.1,3098.5,0.001]
[1768050551688,0.002,3099.1,3098.5,1.40356944]
[1768050552002,0.002,3099.1,3098.6,0.03227263]
[1768050554278,0.002,3099.1,3098.6,3.25951231]
[1768050559181,0.002,3099.1,3098.6,0.03227263]
[1768050559584,0.002,3098.8,3098.6,0.03227263]
[1768050559788,0.002,3098.8,3098.7,0.51847086]
[1768050572104,0.002,3099.1,3098.7,4.7284785]
[1768050572329,0.002,3099.1,3098.7,3.74563063]
[1768050572604,0.002,3099.1,3098.8,0.03227055]
[1768050573315,3.95e-06,3099.4,3098.8,0.91788956]
[1768050573491,3.95e-06,3099.4,3098.7,7.2267904]
[1768050573492,3.95e-06,3099.4,3098.9,1.51005425]
[1768050573999,3.95e-06,3099.4,3099.0,3.22684737]
[1768050574680,3.95e-06,3099.4,3099.0,3.3559748]
[1768050577780,3.95e-06,3099.4,3099.0,4.27386436]
[1768050578103,3.95e-06,3099.4,3099.0,0.12912743]
[1768050578318,3.95e-06,3099.4,3099.1,0.3948212]
[1768050578482,3.95e-06,3099.4,3099.0,0.12912743]
[1768050584111,0.002,3099.1,3099.0,0.12912743]
[1768050593231,0.91388982,3099.1,3098.6,0.254]
[1768050593409,0.91388982,3099.1,3098.6,1.16588982]
[1768050593733,0.91388982,3099.1,3098.6,0.91188982]
[1768050594121,0.91388982,3099.1,3098.6,1.16588982]
[1768050594633,0.91388982,3099.1,3098.6,0.91188982]
[1768050594933,0.91388982,3099.1,3098.5,0.001]
[1768050595433,0.91388982,3099.1,3098.9,0.001]
[1768050602538,0.002,3099.1,3098.9,0.001]
[1768050657508,0.94493734,3099.1,3098.9,0.001]
[1768050662912,0.94293734,3099.0,3098.9,0.001]
[1768050663110,0.94293734,3098.9,3098.5,0.001]
[1768050676409,0.94293734,3098.9,3098.8,0.001]
[1768050677799,0.9916381,3098.8,3098.5,0.001]
[1768050678410,0.9916381,3098.7,3097.9,0.001]
[1768050680442,0.9916381,3098.6,3097.9,0.001]
[1768050680619,0.9916381,3098.5,3097.9,0.001]
[1768050688750,0.9916381,3098.5,3098.2,0.001]
[1768050688930,0.002,3098.4,3098.2,0.001]
[1768050692647,0.9936381,3098.4,3098.2,0.001]
[1768050706064,4.22111903,3098.4,3098.2,0.001]
[1768050706366,0.4221119,3098.3,3098.2,0.001]
[1768050711659,0.9420963,3098.2,3097.9,0.001]
[1768050712164,0.9420963,3098.2,3097.4,0.91618825]
[1768050714171,0.9420963,3098.1,3097.3,0.256]
[1768050714550,0.9420963,3098.1,3097.3,1.17218825]
[1768050715151,0.9420963,3098.1,3097.3,0.91818825]
[1768050716072,1.40128751,3098.1,3097.3,0.91818825]
[1768050716263,4.6290852,3098.1,3097.3,0.91818825]
[1768050716951,0.9420963,3098.0,3097.3,0.91818825]
[1768050718276,0.9400963,3098.0,3097.3,0.91818825]
[1768050718574,0.9400963,3098.0,3097.3,0.002]
[1768050720175,4.16803558,3098.0,3097.3,0.002]
[1768050720378,4.6307441,3098.0,3097.3,0.002]
[1768050723376,4.6307441,3098.0,3097.6,0.001]
[1768050723577,4.6327441,3098.0,3097.6,0.001]
[1768050723784,0.96344165,3097.9,3097.6,0.001]
[1768050723962,0.46560894,3097.8,3097.6,0.001]
[1768050724669,0.96344165,3097.9,3097.6,0.001]
[1768050725680,0.002,3098.0,3097.6,0.001]
[1768050726264,0.96544165,3098.0,3097.6,0.001]
[1768050726780,0.96344165,3097.9,3097.6,0.001]
[1768050730801,4.19143786,3097.9,3097.6,0.001]
[1768050731097,0.41934379,3097.8,3097.6,0.001]
[1768050742811,0.002,3098.0,3097.6,0.001]
[1768050743117,3.22989102,3098.0,3097.6,0.001]
[1768050746619,0.002,3098.0,3097.6,0.001]
[1768050747117,0.002,3098.0,3097.9,0.001]
[1768050747325,0.002,3098.0,3097.6,0.001]
[1768050747487,0.4213274,3098.0,3097.6,0.001]
[1768050749392,3.64922993,3098.0,3097.6,0.001]
[1768050756298,0.9287734,3097.9,3097.0,0.254]
[1768050756495,0.9287734,3097.9,3097.0,1.22080367]
[1768050757418,0.9287734,3097.9,3097.0,0.96680367]
[1768050757606,1.70936399,3097.8,3097.0,0.96680367]
[1768050758228,3.22820156,3097.7,3097.0,0.96680367]
[1768050760798,4.93750332,3097.8,3097.0,0.96680367]
[1768050761199,1.70936399,3097.8,3097.0,0.96680367]
[1768050762829,4.93749521,3097.8,3097.0,0.96680367]
[1768050763004,0.49374952,3097.7,3097.0,0.96680367]
[1768050770034,0.49374952,3097.7,3097.3,0.001]
[1768050770216,0.49574952,3097.7,3097.3,0.001]
[1768050778724,0.002,3097.7,3097.3,0.001]
[1768050782149,0.001,3097.4,3097.3,0.001]
[1768050808164,0.91946706,3097.4,3097.0,0.002]
[1768050810960,0.91846706,3097.3,3097.0,0.002]
[1768050826243,4.14712998,3097.3,3097.0,0.002]
[1768050826542,0.73766559,3097.2,3097.0,0.002]
[1768050831124,0.73766559,3097.2,3096.9,1e-08]
[1768050831125,3.96647355,3097.2,3096.9,1e-08]
[1768050832221,4.86995862,3097.2,3096.9,1e-08]
[1768050832420,0.82278432,3097.1,3096.9,1e-08]
[1768050841146,3.22866121,3097.3,3096.9,1e-08]
[1768050842562,0.255,3097.4,3096.9,1e-08]
[1768050842763,0.255,3097.4,3096.9,0.99332605]
[1768050842968,3.48352928,3097.4,3096.9,1e-08]
[1768050854048,0.001,3097.1,3096.9,1e-08]
[1768050877271,0.74498025,3097.1,3096.9,1e-08]
[1768050877602,3.97381647,3097.1,3096.9,1e-08]
[1768050878102,0.74498025,3097.1,3096.9,1e-08]
[1768050878407,3.97381109,3097.1,3096.9,1e-08]
[1768050883599,4.95526792,3097.1,3096.9,1e-08]
[1768050888112,1.72643708,3097.1,3096.9,1e-08]
[1768050888915,0.74498025,3097.1,3096.9,1e-08]
[1768050889115,0.001,3097.1,3096.9,1e-08]
[1768050889317,3.22983375,3097.1,3096.9,1e-08]
[1768050889718,0.001,3097.1,3096.9,1e-08]
[1768050892809,0.97501261,3097.1,3096.9,1e-08]
[1768050893008,0.001,3097.1,3096.9,1e-08]
[1768050893214,0.42136311,3097.1,3096.9,1e-08]
[1768050893412,1.39537572,3097.1,3096.9,1e-08]
[1768050893584,0.97401261,3097.0,3096.9,1e-08]
[1768050894917,0.42136311,3097.1,3096.9,1e-08]
[1768050902319,4.62420774,3097.1,3096.9,1e-08]
[1768050902626,0.97401261,3097.0,3096.9,1e-08]
[1768050908033,3.65019513,3097.1,3096.9,1e-08]
[1768050910627,0.45513733,3097.0,3096.9,1e-08]
[1768050913839,3.68406855,3097.0,3096.9,1e-08]
[1768050914054,0.45513733,3097.0,3096.9,1e-08]
[1768050916004,0.001,3097.1,3096.9,1e-08]
[1768050936359,0.98447039,3097.1,3096.9,1e-08]
[1768050943406,0.001,3097.1,3096.9,1e-08]
[1768050956716,4.06157772,3097.3,3096.9,1e-08]
[1768050958624,0.001,3097.0,3096.9,1e-08]
[1768051001494,0.001,3097.4,3096.9,1e-08]
[1768051002896,0.002,3097.7,3097.0,0.9939588]
[1768051003465,0.002,3097.7,3097.1,0.9939588]
[1768051003774,0.002,3097.7,3097.2,0.42228236]
[1768051006497,0.002,3097.7,3097.1,0.9939588]
[1768051006897,0.002,3097.7,3097.2,0.002]
[1768051009798,0.002,3097.7,3097.2,0.9959588]
[1768051009999,0.98539405,3098.0,3097.2,0.9959588]
[1768051010000,0.002,3098.0,3097.2,0.9959588]
[1768051010201,0.98539405,3098.0,3097.3,0.9939588]
[1768051011293,4.21328331,3098.0,3097.3,0.9939588]
[1768051011602,0.98539405,3098.0,3097.3,0.9939588]
[1768051014004,0.98539405,3098.0,3097.3,4.22257593]
[1768051014302,0.98539405,3098.0,3097.3,4.58462182]
[1768051014503,0.98539405,3098.0,3097.3,1.35600469]
[1768051014706,0.98539405,3098.0,3097.3,4.58461271]
[1768051018592,0.98539405,3098.0,3097.6,0.002]
[1768051018918,0.001,3097.7,3097.6,0.002]
[1768051020687,0.002,3098.0,3097.6,0.002]
[1768051030943,0.002,3097.7,3097.6,0.002]
[1768051031125,0.002,3097.7,3097.6,0.41703015]
[1768051031294,0.002,3097.7,3097.6,0.002]
[1768051056749,1.00076552,3097.7,3097.6,0.002]
[1768051063477,4.22896708,3097.7,3097.6,0.002]
[1768051066455,1.00076552,3097.7,3097.6,0.002]
[1768051071664,4.22896708,3097.7,3097.6,0.002]
[1768051072235,4.98758413,3097.7,3097.6,0.002]
[1768051072665,1.75938257,3097.7,3097.6,0.002]
[1768051073765,0.76061705,3097.7,3097.6,0.002]
[1768051076461,0.002,3097.7,3097.6,0.002]
[1768051076643,0.002,3097.7,3097.6,0.98896662]
[1768051080176,0.002,3097.7,3097.6,0.002]
[1768051102912,0.91312248,3097.7,3097.6,0.002]
[1768051106008,4.14132404,3097.7,3097.6,0.002]
[1768051107917,0.91112248,3097.6,3097.3,3.95e-06]
[1768051114407,0.002,3097.7,3097.3,3.95e-06]
[1768051122843,0.001,3097.4,3097.3,3.95e-06]
[1768051135752,0.001,3097.4,3097.3,0.96620278]
[1768051136922,0.002,3097.7,3097.3,0.96620278]
[1768051137128,0.002,3097.7,3097.3,1.3858996]
[1768051137350,0.002,3097.7,3097.3,0.96620278]
[1768051138453,0.002,3097.7,3097.4,0.96619883]
[1768051141746,0.002,3098.0,3097.6,0.96619883]
[1768051142064,0.002,3098.0,3097.5,0.254]
[1768051142065,0.002,3098.3,3097.8,0.96619883]
[1768051143731,0.002,3098.3,3098.0,0.9593996]
[1768051143930,0.002,3098.3,3098.1,1.37813887]
[1768051144239,0.002,3098.4,3098.1,1.37813887]
[1768051144443,0.002,3098.7,3098.1,1.37813887]
[1768051144828,0.002,3098.7,3098.2,0.9593996]
[1768051145960,0.002,3098.7,3098.4,0.9593996]
[1768051146330,0.002,3098.7,3098.4,1.7008623]
[1768051148235,0.002,3098.7,3098.4,4.92824946]
[1768051150381,0.002,3098.7,3098.4,4.92831639]
[1768051152256,0.002,3098.7,3098.4,1.7008623]
[1768051152464,0.002,3098.7,3098.4,0.7414627]
[1768051153759,0.002,3098.7,3098.4,0.9954627]
[1768051156286,0.002,3098.7,3098.5,0.36917285]
[1768051177715,0.002,3098.7,3098.3,0.254]
[1768051180086,0.002,3098.4,3098.3,0.254]
[1768051180286,0.002,3098.7,3098.3,0.254]
[1768051180488,0.93002038,3098.7,3098.2,0.254]
[1768051180683,0.93002038,3098.7,3098.3,0.44309096]
[1768051188927,0.002,3098.7,3098.3,0.44309096]
[1768051190523,0.002,3098.7,3098.3,3.67064284]
[1768051191810,0.002,3098.4,3098.3,3.67064284]
[1768051192013,0.002,3098.7,3098.3,3.67064284]
[1768051192214,0.002,3098.7,3098.4,0.46038221]
[1768051193549,0.002,3098.7,3098.5,0.93317923]
[1768051197515,0.002,3098.7,3098.6,0.03227263]
[1768051198548,0.002,3098.7,3098.5,0.93317923]
[1768051201030,0.002,3098.7,3098.4,3.68780689]
[1768051201234,0.002,3098.7,3098.5,0.36878069]
[1768051203117,0.002,3098.7,3098.2,4.17480693]
[1768051203319,0.002,3098.4,3098.2,4.17480693]